bitfinex/quotes_SOLUSD_20250619
["timestamp","ask_amount","ask_price","bid_price","bid_amount"]
[1750336208061,5.24327328,145.52,145.49,6.87332462]
[1750336208454,5.13843244,145.51,145.49,6.87332462]
[1750336209287,9.85485218,145.51,145.49,6.87332462]
[1750336209481,7.81215965,145.52,145.49,6.87332462]
[1750336209685,9.85561159,145.51,145.49,6.87332462]
[1750336209858,7.81215965,145.52,145.49,6.87332462]
[1750336210057,9.85561159,145.51,145.49,6.87332462]
[1750336210259,7.81215965,145.52,145.49,6.87332462]
[1750336210458,9.8558498,145.51,145.49,6.87332462]
[1750336210680,7.81215965,145.52,145.49,6.87332462]
[1750336210984,9.8558498,145.51,145.48,8.18993552]
[1750336211287,4.71674231,145.51,145.48,8.18993552]
[1750336211657,9.85582073,145.51,145.48,8.18993552]
[1750336211875,5.13907842,145.51,145.49,6.87332462]
[1750336212078,9.84785228,145.52,145.49,15.06326014]
[1750336212265,9.84778596,145.52,145.49,15.06326014]
[1750336212477,10.75873242,145.54,145.5,8.18993552]
[1750336212668,9.84675716,145.53,145.5,8.18993552]
[1750336212870,10.75873242,145.54,145.5,8.18993552]
[1750336213068,9.84675467,145.53,145.5,8.18993552]
[1750336213268,4.70830106,145.52,145.49,15.06326014]
[1750336213469,9.8463323,145.53,145.49,15.06326014]
[1750336213689,9.8463323,145.52,145.49,15.06326014]
[1750336213979,5.13803124,145.52,145.49,15.06326014]
[1750336214591,9.8463991,145.52,145.49,15.06326014]
[1750336214887,8.18993552,145.53,145.49,15.06326014]
[1750336215061,9.84742454,145.52,145.49,15.06326014]
[1750336215262,2.56925154,145.54,145.49,15.06326014]
[1750336215491,20.60659747,145.53,145.49,15.06326014]
[1750336215797,9.84744286,145.52,145.49,15.06326014]
[1750336215974,4.70933373,145.52,145.49,15.06326014]
[1750336216377,9.84679944,145.52,145.49,15.06326014]
[1750336217572,8.18993552,145.53,145.49,15.06326014]
[1750336218198,12.89623729,145.53,145.49,15.06326014]
[1750336218364,18.032773,145.53,145.49,15.06326014]
[1750336218862,8.18993552,145.53,145.49,15.06326014]
[1750336219060,8.18993552,145.51,145.47,15.06420512]
[1750336219366,5.13653571,145.51,145.48,8.18993552]
[1750336219689,20.60025323,145.53,145.49,8.18993552]
[1750336219890,9.8427781,145.52,145.49,8.18993552]
[1750336220097,4.70624239,145.52,145.49,8.18993552]
[1750336220293,4.70624239,145.52,145.5,6.87285223]
[1750336220500,5.13615635,145.51,145.5,6.87285223]
[1750336221189,4.70624239,145.52,145.5,6.87285223]
[1750336221580,9.84207532,145.52,145.5,6.87285223]
[1750336222504,9.84207532,145.52,145.49,6.87332462]
[1750336222704,8.18993552,145.5,145.45,25.37780725]
[1750336223003,8.18993552,145.49,145.45,17.18787173]
[1750336223200,8.18993552,145.49,145.45,6.87521485]
[1750336223511,8.18993552,145.47,145.45,6.87521485]
[1750336226104,18.03445797,145.46,145.44,5.84]
[1750336226273,8.18993552,145.45,145.42,6.8766332]
[1750336226478,8.18993552,145.44,145.41,6.87710611]
[1750336230813,8.18993552,145.43,145.41,6.87710611]
[1750336232308,9.84452245,145.45,145.4,6.87757909]
[1750336232492,8.18993552,145.43,145.4,6.87757909]
[1750336235014,8.18993552,145.44,145.4,32.26146234]
[1750336236493,39.32661402,145.46,145.42,8.18993552]
[1750336236694,34.18993552,145.46,145.42,8.18993552]
[1750336237098,34.18993552,145.46,145.43,24.06656123]
[1750336239238,26.0,145.46,145.43,8.18993552]
[1750336240224,26.0,145.46,145.44,6.87568756]
[1750336240535,8.18993552,145.47,145.44,24.06490648]
[1750336240727,12.92468756,145.48,145.44,24.06490648]
[1750336240903,18.06136606,145.48,145.44,24.06490648]
[1750336241110,8.18993552,145.47,145.44,24.06490648]
[1750336243820,8.18993552,145.48,145.44,32.254842]
[1750336245246,26.0,145.49,145.45,8.18993552]
[1750336245432,26.0,145.49,145.46,8.18993552]
[1750336246850,26.0,145.49,145.47,6.8742696]
[1750336248148,8.18993552,145.5,145.47,24.05994362]
[1750336248358,8.18993552,145.51,145.47,32.24987914]
[1750336248731,4.72556515,145.51,145.47,32.24987914]
[1750336249028,12.91550067,145.51,145.47,32.24987914]
[1750336249654,8.18993552,145.51,145.47,32.24987914]
[1750336249861,4.72556432,145.51,145.47,32.24987914]
[1750336250164,12.91624476,145.51,145.47,66.62122718]
[1750336252259,18.0441501,145.51,145.47,66.62122718]
[1750336253160,12.91624476,145.51,145.47,66.62122718]
[1750336255275,4.72630924,145.51,145.47,58.43129166]
[1750336255579,12.91624476,145.51,145.47,58.43129166]
[1750336256151,8.18993552,145.51,145.47,58.43129166]
[1750336256452,8.18993552,145.51,145.47,66.62122718]
[1750336256651,4.72630924,145.51,145.48,8.18993552]
[1750336256855,18.0441501,145.52,145.48,8.18993552]
[1750336257669,18.0441501,145.52,145.47,58.43129166]
[1750336257870,13.31784086,145.52,145.49,24.05663618]
[1750336258076,18.04040731,145.52,145.49,24.05663618]
[1750336258786,20.60560969,145.52,145.49,24.05663618]
[1750336258985,4.72256645,145.51,145.49,24.05663618]
[1750336259276,18.04040731,145.52,145.49,24.05663618]
[1750336259478,13.31784086,145.52,145.49,24.05663618]
[1750336259654,18.04064996,145.52,145.49,24.05663618]
[1750336260349,12.91274462,145.52,145.49,24.05663618]
[1750336260683,18.04064996,145.52,145.49,24.05663618]
[1750336261183,12.91274462,145.52,145.49,24.05663618]
[1750336261384,12.91132357,145.52,145.49,24.05663618]
[1750336262388,18.03922891,145.52,145.49,24.05663618]
[1750336262682,12.91132357,145.52,145.49,24.05663618]
[1750336262883,18.03922891,145.52,145.49,24.05663618]
[1750336263979,12.91132357,145.52,145.49,24.05663618]
[1750336264280,12.9125836,145.52,145.49,24.05663618]
[1750336264464,8.18993552,145.52,145.49,24.05663618]
[1750336264661,4.72264808,145.52,145.5,8.18993552]
[1750336264890,8.18993552,145.55,145.51,8.18993552]
[1750336265182,4.72264808,145.54,145.52,24.05167674]
[1750336265580,12.93376023,145.55,145.52,24.05167674]
[1750336265783,5.13155069,145.54,145.52,24.05167674]
[1750336266419,9.8753754,145.55,145.52,24.05167674]
[1750336267020,9.8753754,145.55,145.52,32.24161226]
[1750336267382,5.13155069,145.55,145.52,32.24161226]
[1750336267581,9.8753754,145.55,145.53,8.18993552]
[1750336267781,5.13155069,145.55,145.53,8.18993552]
[1750336269315,5.13155069,145.55,145.54,6.8709633]
[1750336269684,4.74382471,145.57,145.54,24.04837157]
[1750336269886,15.49505006,145.58,145.54,24.04837157]
[1750336270196,15.49504913,145.58,145.54,24.04837157]
[1750336272616,7.30511361,145.58,145.54,24.04837157]
[1750336272801,8.18993552,145.57,145.54,24.04837157]
[1750336276546,7.27968223,145.58,145.54,24.04837157]
[1750336276730,8.18993552,145.57,145.54,24.04837157]
[1750336277226,39.88475063,145.6,145.56,8.18993552]
[1750336277746,16.88591781,145.6,145.56,8.18993552]
[1750336277911,16.88591781,145.6,145.58,8.18993552]
[1750336278331,16.88591781,145.6,145.59,8.18993552]
[1750336278612,8.33333333,145.6,145.59,15.05853913]
[1750336282170,8.33333333,145.6,145.59,8.51470361]
[1750336282356,8.33333333,145.6,145.59,16.70463913]
[1750336290270,8.33333333,145.6,145.59,15.05853913]
[1750336291851,8.33333333,145.6,145.59,103.25853913]
[1750336292052,8.33333333,145.6,145.59,95.06860361]
[1750336292355,8.33333333,145.6,145.59,131.01853913]
[1750336293461,8.33333333,145.6,145.59,130.99853913]
[1750336294176,8.33333333,145.6,145.59,103.25853913]
[1750336295578,8.33333333,145.6,145.59,95.06860361]
[1750336297775,8.33333333,145.6,145.59,15.05853913]
[1750336302291,8.33333333,145.6,145.59,6.86860361]
[1750336302492,16.52326885,145.6,145.57,6.86954729]
[1750336302682,8.18993552,145.59,145.57,6.86954729]
[1750336302881,8.18993552,145.58,145.57,6.86954729]
[1750336303079,8.18993552,145.59,145.57,6.86954729]
[1750336304513,8.18993552,145.59,145.56,6.87001923]
[1750336304808,8.18993552,145.58,145.56,6.87001923]
[1750336304979,8.18993552,145.57,145.56,6.87001923]
[1750336305376,8.18993552,145.57,145.55,6.87035333]
[1750336305603,8.18993552,145.56,145.55,6.87035333]
[1750336306106,8.18993552,145.56,145.51,24.05311443]
[1750336306312,8.18993552,145.53,145.51,6.8723799]
[1750336306601,8.18993552,145.52,145.5,77.85290691]
[1750336306806,34.18993552,145.51,145.42,18.64964886]
[1750336307109,8.18993552,145.45,145.4,24.07152682]
[1750336307516,8.18993552,145.45,145.41,8.18993552]
[1750336308301,8.18993552,145.45,145.42,6.8766332]
[1750336308609,4.73721834,145.49,145.42,6.8766332]
[1750336308791,8.18993552,145.45,145.42,6.8766332]
[1750336313319,8.18993552,145.44,145.42,6.8766332]
[1750336314627,8.18993552,145.44,145.41,6.87710611]
[1750336315902,8.18993552,145.42,145.41,6.87710611]
[1750336316207,26.83958438,145.46,145.41,6.87710611]
[1750336316208,8.18993552,145.43,145.41,6.87710611]
[1750336316811,8.18993552,145.43,145.39,15.06798765]
[1750336317425,8.18993552,145.43,145.39,6.87805213]
[1750336317725,8.18993552,145.42,145.39,6.87805213]
[1750336319005,20.85858769,145.43,145.39,6.87805213]
[1750336319006,8.18993552,145.41,145.39,6.87805213]
[1750336319513,8.18993552,145.4,145.39,6.87805213]
[1750336320331,8.18993552,145.41,145.39,6.87805213]
[1750336320718,20.85858769,145.43,145.39,32.26311798]
[1750336321131,20.85858769,145.43,145.42,8.18993552]
[1750336322158,20.85858769,145.43,145.41,8.18993552]
[1750336322852,20.85858769,145.43,145.42,6.8766332]
[1750336330244,29.04852321,145.43,145.41,6.87691533]
[1750336330566,8.18993552,145.42,145.39,6.87805213]
[1750336332547,8.18993552,145.41,145.39,6.87805213]
[1750336332877,8.18993552,145.4,145.39,6.87805213]
[1750336333058,8.18993552,145.41,145.39,6.87805213]
[1750336345382,12.94530168,145.41,145.39,6.87805213]
[1750336345557,8.18993552,145.41,145.39,6.87805213]
[1750336345758,12.94530168,145.41,145.39,6.87805213]
[1750336346064,8.18993552,145.4,145.39,6.87805213]
[1750336346895,8.18993552,145.4,145.35,8.18993552]
[1750336347096,8.18993552,145.39,145.35,8.18993552]
[1750336347455,8.18993552,145.39,145.35,15.06988048]
[1750336350496,8.18993552,145.39,145.35,32.26974288]
[1750336351393,4.78376869,145.38,145.35,24.07980736]
[1750336351581,4.78376869,145.37,145.35,32.26974288]
[1750336351784,8.18993552,145.39,145.35,32.26974288]
[1750336352078,9.92547734,145.38,145.35,32.26974288]
[1750336352384,4.787918,145.37,145.35,17.1998624]
[1750336352587,8.18993552,145.39,145.35,25.38979792]
[1750336352781,8.18993552,145.37,145.34,6.88041832]
[1750336352981,4.78739687,145.36,145.34,6.88041832]
[1750336353209,8.18993552,145.36,145.34,6.88041832]
[1750336353372,12.9780836,145.35,145.33,6.88071102]
[1750336353576,4.78850611,145.34,145.33,6.88071102]
[1750336354209,4.78916984,145.34,145.33,6.88071102]
[1750336354511,12.97910536,145.34,145.31,6.88183882]
[1750336354689,8.18993552,145.34,145.31,6.88183882]
[1750336357955,5.13155853,145.35,145.31,6.88183882]
[1750336358154,8.18993552,145.34,145.31,6.88183882]
[1750336358525,8.18993552,145.33,145.31,6.88183882]
[1750336359561,8.18993552,145.33,145.3,6.88231245]
[1750336361216,8.18993552,145.34,145.3,15.07224797]
[1750336361845,8.18993552,145.33,145.3,6.88231245]
[1750336362549,8.18993552,145.32,145.29,6.88259296]
[1750336362920,8.18993552,145.31,145.29,6.88259296]
[1750336363727,5.12570815,145.35,145.29,6.88259296]
[1750336363958,8.18993552,145.34,145.29,15.07252848]
[1750336364155,8.18993552,145.33,145.29,15.07252848]
[1750336364527,44.64964886,145.35,145.29,32.27949385]
[1750336364727,44.64964886,145.35,145.3,8.18993552]
[1750336364728,8.18993552,145.34,145.3,8.18993552]
[1750336365524,8.18993552,145.34,145.31,6.88183882]
[1750336365725,44.64964886,145.35,145.31,6.88183882]
[1750336365951,8.18993552,145.34,145.31,6.88183882]
[1750336366831,52.83958438,145.35,145.31,32.2763714]
[1750336367847,52.83958438,145.35,145.31,24.08643588]
[1750336368036,52.83958438,145.35,145.31,32.2763714]
[1750336368543,8.18993552,145.41,145.34,8.18993552]
[1750336368751,8.18993552,145.42,145.38,8.18993552]
[1750336368945,7.33132581,145.43,145.39,8.18993552]
[1750336368946,8.18993552,145.43,145.39,8.18993552]
[1750336369147,15.52126133,145.44,145.4,8.18993552]
[1750336369352,15.52126133,145.44,145.34,33.82]
[1750336369353,7.33132581,145.44,145.41,8.18993552]
[1750336369529,18.64964886,145.44,145.41,8.18993552]
[1750336370144,26.83958438,145.44,145.4,8.18993552]
[1750336370350,26.83958438,145.44,145.41,6.87710611]
[1750336374167,31.96217538,145.44,145.41,6.87710611]
[1750336374466,26.83958438,145.44,145.41,6.87710611]
[1750336374663,8.18993552,145.42,145.39,6.87805213]
[1750336376569,30.64913557,145.44,145.39,6.87805213]
[1750336376761,8.18993552,145.42,145.39,6.87805213]
[1750336379463,18.64964886,145.42,145.39,6.87805213]
[1750336379674,23.41265829,145.42,145.39,6.87805213]
[1750336380456,18.64964886,145.42,145.39,6.87805213]
[1750336381253,23.4126587,145.42,145.39,6.87805213]
[1750336381881,18.64964886,145.42,145.39,6.87805213]
[1750336382262,18.64964886,145.42,145.39,15.06798765]
[1750336383485,18.64964886,145.42,145.39,6.87805213]
[1750336383876,31.60446935,145.42,145.39,6.87805213]
[1750336384079,26.83958438,145.42,145.39,6.87805213]
[1750336387088,8.18993552,145.4,145.38,6.87833135]
[1750336387661,8.18993552,145.39,145.36,6.87924677]
[1750336388076,8.18993552,145.38,145.36,6.87924677]
[1750336388959,8.18993552,145.38,145.35,6.87971462]
[1750336390584,8.18993552,145.37,145.35,6.87971462]
[1750336391376,8.18993552,145.36,145.32,8.18993552]
[1750336392262,8.18993552,145.36,145.33,6.88089176]
[1750336392482,8.18993552,145.37,145.33,15.07082728]
[1750336394798,8.18993552,145.37,145.33,6.88089176]
[1750336395092,8.18993552,145.36,145.33,6.88089176]
[1750336395869,18.64964886,145.37,145.33,6.88089176]
[1750336396083,8.18993552,145.36,145.33,6.88089176]
[1750336398403,8.18993552,145.35,145.33,6.88089176]
[1750336398705,8.18993552,145.35,145.32,24.08383407]
[1750336399199,8.18993552,145.35,145.32,6.88136526]
[1750336399388,18.64964886,145.37,145.32,6.88136526]
[1750336399389,8.18993552,145.34,145.32,6.88136526]
[1750336399902,18.64964886,145.35,145.32,6.88136526]
[1750336400085,26.83958438,145.35,145.32,6.88136526]
[1750336400404,26.83958438,145.35,145.31,6.88183882]
[1750336400776,8.18993552,145.34,145.31,6.88183882]
[1750336402120,18.64964886,145.35,145.31,6.88183882]
[1750336402121,8.18993552,145.33,145.31,6.88183882]
[1750336402623,8.18993552,145.33,145.3,6.88231245]
[1750336402932,8.18993552,145.32,145.3,6.88231245]
[1750336404755,8.18993552,145.33,145.3,6.88231245]
[1750336408631,8.18993552,145.32,145.3,6.88231245]
[1750336409043,8.18993552,145.31,145.29,6.88255403]
[1750336410033,8.18993552,145.31,145.27,6.88373373]
[1750336410819,8.18993552,145.31,145.27,15.07366925]
[1750336411841,8.18993552,145.31,145.27,32.28300359]
[1750336412064,25.52974341,145.35,145.29,15.07272167]
[1750336412065,18.64964886,145.35,145.29,15.07272167]
[1750336412254,26.83958438,145.34,145.3,8.18993552]
[1750336412837,18.64964886,145.34,145.3,8.18993552]
[1750336413638,18.64964886,145.34,145.31,8.18993552]
[1750336413953,26.83958438,145.34,145.3,8.18993552]
[1750336414765,26.0,145.35,145.31,15.07177434]
[1750336414944,26.0,145.35,145.32,8.18993552]
[1750336415259,18.64964886,145.36,145.32,8.18993552]
[1750336415433,36.75584772,145.36,145.32,8.18993552]
[1750336415636,31.96542023,145.36,145.32,8.18993552]
[1750336415940,8.18993552,145.35,145.31,32.2763714]
[1750336417148,8.18993552,145.34,145.31,6.88183882]
[1750336417949,8.18993552,145.33,145.31,6.88183882]
[1750336419048,8.18993552,145.33,145.29,17.20672941]
[1750336419049,8.18993552,145.33,145.29,24.08951556]
[1750336419736,8.18993552,145.33,145.29,6.88278615]
[1750336421053,8.18993552,145.33,145.27,24.09299843]
[1750336421249,8.18993552,145.33,145.28,8.18993552]
[1750336422167,8.18993552,145.33,145.29,8.18993552]
[1750336422659,26.83958438,145.34,145.29,8.18993552]
[1750336422863,18.64964886,145.34,145.3,8.18993552]
[1750336423035,8.18993552,145.35,145.32,6.88136526]
[1750336425852,34.18993552,145.37,145.32,15.07130078]
[1750336426160,34.18993552,145.37,145.33,8.18993552]
[1750336427147,9.80919551,145.41,145.36,8.18993552]
[1750336427492,9.80919551,145.41,145.39,8.18993552]
[1750336427646,9.80919551,145.41,145.4,8.18993552]
[1750336427847,9.80919551,145.41,145.4,15.06751461]
[1750336433178,9.80919551,145.41,145.4,6.87757909]
[1750336433678,9.80919551,145.41,145.39,6.87783635]
[1750336434259,17.99913103,145.41,145.39,6.87783635]
[1750336434779,22.77544008,145.41,145.38,6.87852524]
[1750336435193,17.99913103,145.41,145.38,6.87852524]
[1750336436569,22.78018144,145.41,145.38,6.87852524]
[1750336436771,22.78018144,145.41,145.37,6.87899841]
[1750336437258,8.18993552,145.4,145.37,6.87899841]
[1750336437979,26.83958438,145.39,145.37,6.87899841]
[1750336438966,26.83958438,145.39,145.36,6.87947165]
[1750336439354,8.18993552,145.38,145.3,42.20459037]
[1750336439560,8.18993552,145.37,145.33,8.18993552]
[1750336439766,12.97178431,145.38,145.33,8.18993552]
[1750336440358,8.18993552,145.37,145.33,8.18993552]
[1750336440782,8.18993552,145.35,145.31,6.88183882]
[1750336441083,8.18993552,145.33,145.28,15.07319543]
[1750336441268,8.18993552,145.33,145.29,8.18993552]
[1750336441671,8.18993552,145.33,145.28,24.09140968]
[1750336441865,25.52969792,145.35,145.28,6.88325991]
[1750336442177,8.18993552,145.31,145.28,6.88325991]
[1750336443780,34.18993552,145.32,145.28,15.07319543]
[1750336444982,154.51498103,145.38,145.3,8.18993552]
[1750336445161,154.51498103,145.38,145.28,24.09140968]
[1750336445162,34.18993552,145.35,145.32,6.88136526]
[1750336445576,8.18993552,145.35,145.32,6.88136526]
[1750336449163,44.64964886,145.36,145.32,15.07130078]
[1750336449370,52.83958438,145.36,145.32,15.07130078]
[1750336453575,8.18993552,145.35,145.32,6.88136526]
[1750336454395,52.83958438,145.36,145.32,15.07130078]
[1750336456095,52.83958438,145.36,145.32,8.18993552]
[1750336457077,8.18993552,145.35,145.31,8.18993552]
[1750336457978,8.18993552,145.34,145.3,25.39570679]
[1750336458183,8.18993552,145.34,145.3,32.27801924]
[1750336459182,8.18993552,145.34,145.3,24.08808372]
[1750336459386,8.18993552,145.34,145.3,32.27801924]
[1750336459901,8.18993552,145.34,145.3,24.08808372]
[1750336460397,8.18993552,145.33,145.3,6.88231245]
[1750336462207,8.18993552,145.34,145.3,15.07224797]
[1750336462985,26.83958438,145.35,145.3,15.07224797]
[1750336463598,8.18993552,145.34,145.3,15.07224797]
[1750336464386,8.18993552,145.34,145.3,6.88231245]
[1750336465609,8.18993552,145.31,145.28,6.88325991]
[1750336465811,4.77389273,145.34,145.27,28.18415255]
[1750336465812,8.18993552,145.3,145.27,28.18415255]
[1750336465987,8.18993552,145.29,145.27,28.18415255]
[1750336466500,8.18993552,145.3,145.27,28.18415255]
[1750336467214,8.18993552,145.29,145.27,28.18415255]
[1750336468818,8.18993552,145.3,145.27,28.18415255]
[1750336470623,8.18993552,145.3,145.27,6.88358538]
[1750336472488,8.18993552,145.29,145.27,6.88358538]
[1750336473494,8.18993552,145.29,145.26,6.88420762]
[1750336474814,8.18993552,145.3,145.26,6.88420762]
[1750336476827,8.18993552,145.3,145.26,15.07414314]
[1750336478298,8.18993552,145.3,145.25,17.2106298]
[1750336478502,8.18993552,145.3,145.26,8.18993552]
[1750336478905,8.18993552,145.3,145.25,25.40056532]
[1750336479929,8.18993552,145.29,145.25,25.40056532]
[1750336480113,8.18993552,145.3,145.25,25.40056532]
[1750336480319,8.18993552,145.3,145.27,6.88373373]
[1750336481225,26.83958438,145.31,145.27,15.07366925]
[1750336485029,8.18993552,145.3,145.27,6.88373373]
[1750336487794,8.18993552,145.3,145.26,6.88420762]
[1750336487998,8.18993552,145.27,145.26,6.88420762]
[1750336488429,12.98033273,145.27,145.23,6.88539496]
[1750336488600,5.13779348,145.29,145.21,6.88657805]
[1750336488601,8.18993552,145.25,145.21,6.88657805]
[1750336488793,8.18993552,145.24,145.21,6.88657805]
[1750336489500,12.98249394,145.24,145.21,6.88657805]
[1750336489701,8.18993552,145.24,145.21,6.88657805]
[1750336490006,12.98249394,145.25,145.21,6.88657805]
[1750336490207,12.97497916,145.25,145.21,6.88657805]
[1750336492533,8.18993552,145.25,145.21,6.88657805]
[1750336492703,12.98051713,145.25,145.21,6.88657805]
[1750336494634,12.98051713,145.25,145.22,8.18993552]
[1750336494635,4.79058161,145.25,145.22,8.18993552]
[1750336494806,12.98066728,145.26,145.22,8.18993552]
[1750336495134,8.18993552,145.26,145.22,8.18993552]
[1750336495315,26.0,145.27,145.24,8.18993552]
[1750336495713,13.32050996,145.28,145.24,8.18993552]
[1750336495936,44.64964886,145.29,145.24,8.18993552]
[1750336496107,18.10895882,145.28,145.24,8.18993552]
[1750336496437,9.24493946,145.34,145.27,8.18993552]
[1750336496610,9.24493946,145.34,145.31,15.0713505]
[1750336497007,14.03111016,145.34,145.31,6.88141498]
[1750336497533,17.43487498,145.34,145.31,6.88141498]
[1750336497828,8.18993552,145.33,145.31,6.88141498]
[1750336498215,27.27641522,145.34,145.31,6.88141498]
[1750336498419,22.56385943,145.34,145.31,6.88141498]
[1750336498615,22.56385943,145.34,145.3,6.88231245]
[1750336501033,22.56566465,145.34,145.3,8.18993552]
[1750336501531,22.56566465,145.34,145.29,8.18993552]
[1750336502342,22.56566465,145.34,145.3,6.88231245]
[1750336503244,4.70429707,145.33,145.3,6.88231245]
[1750336503840,22.56566465,145.34,145.3,6.88231245]
[1750336504240,4.70433175,145.33,145.3,6.88231245]
[1750336504539,8.18993552,145.33,145.3,6.88231245]
[1750336505537,12.89424523,145.33,145.29,6.88259188]
[1750336505848,12.89424523,145.33,145.26,88.2]
[1750336505849,8.18993552,145.31,145.27,8.18993552]
[1750336506546,8.18993552,145.31,145.27,15.07366925]
[1750336507639,8.18993552,145.31,145.27,6.88373373]
[1750336507941,8.18993552,145.29,145.27,6.88373373]
[1750336508150,8.18993552,145.28,145.25,6.88468158]
[1750336509164,8.18993552,145.26,145.24,6.88499692]
[1750336509523,8.18993552,145.26,145.23,6.88562969]
[1750336510056,8.18993552,145.25,145.23,6.88562969]
[1750336510355,8.18993552,145.26,145.23,6.88562969]
[1750336511578,8.18993552,145.26,145.22,6.88610384]
[1750336512444,8.18993552,145.25,145.22,6.88610384]
[1750336513563,8.18993552,145.25,145.21,17.21634631]
[1750336513772,8.18993552,145.25,145.21,24.10292436]
[1750336514332,8.18993552,145.25,145.2,5.96]
[1750336514532,23.34791888,145.24,145.18,6.8880011]
[1750336514755,8.18993552,145.21,145.18,6.8880011]
[1750336516259,4.69827002,145.23,145.2,8.18993552]
[1750336516446,23.78449292,145.25,145.2,8.18993552]
[1750336516639,8.18993552,145.24,145.2,8.18993552]
[1750336516833,8.18993552,145.24,145.18,24.10800385]
[1750336517037,12.88839422,145.24,145.19,8.18993552]
[1750336517359,8.18993552,145.23,145.18,32.29793937]
[1750336517658,23.78333055,145.25,145.2,15.07698786]
[1750336517834,34.18993552,145.26,145.21,8.18993552]
[1750336518031,8.18993552,145.25,145.2,32.29461871]
[1750336518244,34.18993552,145.24,145.2,32.29461871]
[1750336518468,26.0,145.24,145.2,32.29461871]
[1750336519134,8.18993552,145.25,145.21,8.18993552]
[1750336519733,8.18993552,145.25,145.22,6.88610384]
[1750336520278,12.8913614,145.26,145.22,6.88610384]
[1750336521443,38.8913614,145.26,145.22,6.88610384]
[1750336521643,34.18993552,145.26,145.22,6.88610384]
[1750336523775,26.0,145.26,145.22,6.88610384]
[1750336524075,34.18993552,145.26,145.22,6.88610384]
[1750336524358,8.18993552,145.25,145.22,6.88610384]
[1750336524766,8.18993552,145.24,145.22,6.88610384]
[1750336525360,8.18993552,145.23,145.21,6.88637277]
[1750336525773,8.18993552,145.23,145.2,6.88705234]
[1750336529770,4.70098511,145.3,145.28,8.18993552]
[1750336529963,4.70098511,145.31,145.28,8.18993552]
[1750336530785,26.0,145.32,145.28,8.18993552]
[1750336530989,34.18993552,145.32,145.28,8.18993552]
[1750336531382,26.0,145.32,145.28,8.18993552]
[1750336531680,8.18993552,145.32,145.28,8.18993552]
[1750336531871,38.88872446,145.32,145.27,8.18993552]
[1750336532068,34.18993552,145.32,145.27,8.18993552]
[1750336532467,26.0,145.32,145.28,8.18993552]
[1750336532689,34.18993552,145.32,145.24,58.52382263]
[1750336532884,26.0,145.32,145.24,58.52382263]
[1750336533085,12.89315834,145.31,145.24,58.52382263]
[1750336533263,12.89315834,145.31,145.27,8.18993552]
[1750336533663,8.18993552,145.31,145.28,6.88325991]
[1750336536012,34.18993552,145.32,145.28,6.88325991]
[1750336539088,26.0,145.32,145.28,15.07319543]
[1750336539389,26.0,145.32,145.28,32.2813452]
[1750336539594,26.0,145.32,145.29,8.18993552]
[1750336540091,43.43487498,145.34,145.29,8.18993552]
[1750336540972,35.24493946,145.34,145.29,8.18993552]
[1750336541285,8.18993552,145.33,145.29,8.18993552]
[1750336541694,8.18993552,145.33,145.3,6.88231245]
[1750336542188,9.24493946,145.34,145.32,8.18993552]
[1750336542362,9.24493946,145.34,145.33,8.18993552]
[1750336542571,9.24493946,145.34,145.31,8.18993552]
[1750336543693,9.24493946,145.34,145.32,6.88136526]
[1750336544277,9.24493946,145.34,145.32,15.07130078]
[1750336547393,9.24493946,145.34,145.33,8.18993552]
[1750336547697,34.18993552,145.37,145.33,8.18993552]
[1750336548377,8.18993552,145.39,145.35,8.18993552]
[1750336548771,8.33333333,145.4,145.32,33.87881393]
[1750336548772,16.52326885,145.4,145.36,8.18993552]
[1750336548984,16.52326885,145.4,145.37,6.87899841]
[1750336549405,8.33333333,145.4,145.37,6.87899841]
[1750336549779,16.52326885,145.4,145.37,6.87899841]
[1750336552391,8.33333333,145.4,145.37,6.87899841]
[1750336553578,8.33333333,145.4,145.37,15.06893393]
[1750336553973,8.33333333,145.4,145.39,8.18993552]
[1750336554702,8.33333333,145.4,145.39,15.06798765]
[1750336565313,8.33333333,145.4,145.39,23.25792317]
[1750336565511,8.18993552,145.5,145.39,181.69296303]
[1750336565715,8.18993552,145.49,145.45,8.18993552]
[1750336566095,8.18993552,145.49,145.44,8.18993552]
[1750336566507,26.0,145.5,145.44,8.18993552]
[1750336566686,8.18993552,145.49,145.44,8.18993552]
[1750336567696,8.18993552,145.49,145.45,6.87521485]
[1750336568499,8.18993552,145.49,145.45,15.06515037]
[1750336568698,26.0,145.5,145.45,15.06515037]
[1750336568922,34.18993552,145.5,145.46,8.18993552]
[1750336569591,34.18993552,145.5,145.47,6.8742696]
[1750336569896,26.0,145.5,145.47,15.06420512]
[1750336570314,8.18993552,145.51,145.47,15.06420512]
[1750336570803,26.0,145.52,145.47,15.06420512]
[1750336571127,8.18993552,145.51,145.47,15.06420512]
[1750336571615,8.18993552,145.51,145.46,8.18993552]
[1750336572307,8.18993552,145.51,145.45,24.06228784]
[1750336572512,8.18993552,145.5,145.46,8.18993552]
[1750336572904,26.0,145.52,145.45,24.06228784]
[1750336572905,26.0,145.52,145.47,8.18993552]
[1750336573214,8.18993552,145.52,145.48,8.18993552]
[1750336573717,8.18993552,145.52,145.49,6.87332462]
[1750336573916,8.18993552,145.53,145.49,15.06326014]